Cogmind - Beta 13 @@@ ROGUE MODE // 2024.04.09 @ 21:14:36 Player: Spuddz Result: Smashed by cave-in Performance ------------- Evolutions (0) 0 Regions Visited (2) 400 Robots Destroyed (18) 90 Value Destroyed (353) 353 Prototype IDs (0) 0 Alien Tech Used (0) 0 Bonus (0) 0 TOTAL SCORE: 843 Bonus ------- None Cogmind --------- Core Integrity 0/250 Matter 221/300 Energy 100/100 System Corruption 8% Temperature Cool (0) Movement Treading (160) Location -10/Subcaves Parts ------- > --- POWER (1) -------- (None) > --- PROPULSION (2) --- Light Treads > --- UTILITY (2) ------ Scrap Shield > --- WEAPON (2) ------- (None) > --- INVENTORY (5) ---- Light Ion Engine Small Storage Unit ECM Suite Battle Rifle Subdweller Shrapnel Launcher Peak State ------------ > --- POWER ------------ Subdweller Power Source > --- PROPULSION ------- Light Treads Light Treads > --- UTILITY ---------- Scrap Shield > --- WEAPON ----------- Battle Rifle Subdweller Machine Gun > --- INVENTORY -------- Light Ion Engine Small Storage Unit ECM Suite Battle Rifle Subdweller Shrapnel Launcher [Rating: 12] Favorites ----------- Power Light Ion Engine Engine Light Ion Engine Propulsion Light Treads Treads Light Treads Leg Aluminum Leg Utility Small Storage Unit Storage Small Storage Unit Protection Scrap Shield Weapon Light Assault Rifle Ballistic Gun Light Assault Rifle Launcher Grenade Launcher Build | -11 -10 -10 ------- Run | Yrd Mat Sub Slots Evolved . | . . . Power . | . . . Propulsion . | . . . Utility . | . . . Weapon . | . . . Parts Attached 15 | . 4 11 Power 3 | . 1 2 Engine 3 | . 1 2 Core . | . . . Reactor . | . . . Propulsion 3 | . 2 1 Treads 3 | . 2 1 Leg . | . . . Wheel . | . . . Hover . | . . . Flight . | . . . Utility 1 | . . 1 Device . | . . . Storage . | . . . Processor . | . . . Hackware . | . . . Protection 1 | . . 1 Artifact . | . . . Weapon 8 | . 1 7 Energy Gun . | . . . Energy Cannon . | . . . Ballistic Gun 7 | . 1 6 Ballistic Cannon . | . . . Launcher 1 | . . 1 Special Weapon . | . . . Impact Weapon . | . . . Slashing Weapon . | . . . Piercing Weapon . | . . . Special Melee Weapon . | . . . Unidentified Prototypes . | . . . Parts Lost 5 | . . 5 Power 1 | . . 1 Propulsion 1 | . . 1 Utility . | . . . Weapon 3 | . . 3 Highest Loss Streak 4 | . . 4 To Critical Strikes . | . . . Average Slot Usage (%) 84 | . 85 84 Engine 13 | . 14 13 Treads 18 | . 12 28 Leg 9 | . 15 . Storage 8 | . 14 . Protection 5 | . . 13 Ballistic Gun 25 | . 28 22 Launcher 2 | . . 5 Naked Turns . | . . . Heaviest Build 30 | 12 12 30 Greatest Support 40 | 20 40 40 Greatest Overweight (x) . | . . . Average Overweight (x) . | . . . Largest Inventory Capacity 8 | . 8 8 Average Capacity 6 | . 8 5 Most Carried 8 | . 8 8 Average Carried 6 | . 7 5 Final Capacity 8 | 8 8 5 Final Carried 8 | 6 8 5 Class Distribution -------------------- 84% | Mutant 15% | Subdweller-Mutant Dominant Class ---------------- Mutant | -10/Materials Mutant | -10/Subcaves Resources | -11 -10 -10 ----------- Run | Yrd Mat Sub Matter Collected 546 | 200 152 194 Remotely . | . . . Salvage Created 444 | . 357 87 Parts 37 | . 25 12 Haulers Intercepted 1 | . 1 . Recyclers Shooed 1 | . 1 . Parts Field Recycled . | . . . Retrieved Matter . | . . . Parts Self-Destructed 1 | . . 1 Prevented . | . . . Kills | -11 -10 -10 ------- Run | Yrd Mat Sub Combat Hostiles Destroyed 16 | . 13 3 Guns 13 | . 13 . AOE 3 | . . 3 Classes Destroyed 5 | . 4 1 Builder 1 | . 1 . Hauler 1 | . 1 . Swarmer 9 | . 9 . Grunt 4 | . 4 . Subdweller 3 | . . 3 Best Kill Streak 3 | . 3 3 Combat Bots Only 3 | . 3 3 Max Kills in Single Turn 2 | . 1 2 Gunslinging . | . . . Exploded 2 | . . 2 Melee . | . . . Uniques/NPCs Destroyed . | . . . Combat | -11 -10 -10 -------- Run | Yrd Mat Sub Hostile Shots Fired 67 | . 57 10 Missed 18 | . 16 2 Damage Taken 1267 | . 365 902 Core 257 | . 89 168 Absorbed by Shields . | . . . Core Remaining (%) 100 | 100 . . Volleys Fired 98 | . 56 42 Largest 2 | . 2 2 Hottest 55 | . 40 55 Shots Fired 163 | . 112 51 Gun 158 | . 112 46 Cannon . | . . . Launcher 5 | . . 5 Special . | . . . Kinetic 158 | . 112 46 Thermal . | . . . Explosive 5 | . . 5 Electromagnetic . | . . . Robot Hit Streak 8 | . 8 7 Robot Miss Streak 5 | . 5 1 Penetration Max . | . . . Secondary Targets 2 | . 2 . Max Gunslinging Chain 1 | . 1 . Shots Hit Robots 74 | . 67 7 Core Hits 33 | . 26 7 Critical Kills 1 | . 1 . Critical Parts Destroyed 1 | . 1 . Critical Strikes 2 | . 2 . Destroy 2 | . 2 . Melee Attacks . | . . . Impact . | . . . Slashing . | . . . Piercing . | . . . Sneak Attacks . | . . . Combat Hostiles . | . . . Follow-up Attacks . | . . . Damage Inflicted 1229 | . 559 670 Guns 598 | . 559 39 Cannons . | . . . Explosions 616 | . . 616 Melee . | . . . Ramming 15 | . . 15 Kinetic 598 | . 559 39 Thermal . | . . . Explosive 616 | . . 616 Electromagnetic . | . . . Impact . | . . . Slashing . | . . . Piercing . | . . . Highest Corruption 4 | . . 4 Average Corruption 1 | . . 1 Corruption Purged . | . . . Corruption Blocked . | . . . Effects 5 | . . 5 Message Errors 1 | . . 1 Matter Fused 2 | . . 2 Data Loss (minor) 1 | . . 1 Alerts 1 | . . 1 Overload Shots . | . . . Overflow Damage . | . . . Projectiles . | . . . Explosions . | . . . Melee . | . . . Knockbacks . | . . . Impact . | . . . Kinetic . | . . . Secondary . | . . . Self-Inflicted Damage 21 | . . 21 Shots 1 | . . 1 Rammed . | . . . Targets Rammed . | . . . Kicked . | . . . Crushed . | . . . Highest Temperature 12 | . 12 . Average Temperature 7 | . 7 . Received Heat Transfer 108 | . 78 30 Siege Activations . | . . . Robots Corrupted . | . . . Combat Hostiles . | . . . Parts Fried . | . . . Impact Corruptions . | . . . Robots Melted . | . . . Combat Hostiles . | . . . Parts Melted . | . . . Heat Transferred . | . . . Parts Sabotaged . | . . . Parts Stolen . | . . . Parts Stripped . | . . . Power Chain Reactions . | . . . Alert | -11 -10 -10 ------- Run | Yrd Mat Sub Peak Influence 185 | . 185 . Initial . | . . . Average 104 | . 104 . Maximum Alert Level . | . . . Low Security (%) 100 | . 100 . Level 1 . | . . . Level 2 . | . . . Level 3 . | . . . Level 4 . | . . . Level 5 . | . . . High Security . | . . . Max Security . | . . . Squads Dispatched 2 | . 2 . Investigation . | . . . Extermination . | . . . Reinforcement 2 | . 2 . Assault . | . . . Garrison . | . . . Intercept . | . . . Searches Triggered . | . . . Construction Impeded . | . . . Haulers Reinforced . | . . . Active Scanning Responses . | . . . Cargo Convoy Interrupts . | . . . Stealth | -11 -10 -10 --------- Run | Yrd Mat Sub Distress Signals 4 | . 4 . Communications Jammed . | . . . Distress Signals . | . . . Times Spotted 35 | . 27 8 Peak Tracking Total 7 | . 5 7 Tactical Retreats 2 | . 2 . Traps | -11 -10 -10 ------- Run | Yrd Mat Sub Traps Triggered . | . . . Indirectly . | . . . Trap Hack Attempts . | . . . Triggered . | . . . Disarmed . | . . . Reprogrammed . | . . . Reused . | . . . Traps Extracted . | . . . Installed . | . . . Triggered . | . . . Machines | -11 -10 -10 ---------- Run | Yrd Mat Sub Machines Disabled . | . . . Max in Single Turn . | . . . Machines Repaired . | . . . Machines Dismantled . | . . . Machines Sabotaged . | . . . Overloaded Fab Kills . | . . . Hacking | -11 -10 -10 --------- Run | Yrd Mat Sub Machines Accessed . | . . . Terminals . | . . . Fabricators . | . . . Repair Stations . | . . . Recycling Units . | . . . Scanalyzers . | . . . Garrison Access . | . . . Total Hacks . | . . . Successful . | . . . Failed . | . . . Catastrophic . | . . . Database Lockouts . | . . . Manual . | . . . Terminals . | . . . Fabricators . | . . . Repair Stations . | . . . Recycling Units . | . . . Scanalyzers . | . . . Garrison Access . | . . . Terminal Hacks . | . . . Fabricator Hacks . | . . . Repair Station Hacks . | . . . Recycling Unit Hacks . | . . . Scanalyzer . | . . . Garrison Access Hacks . | . . . Unauthorized Hacks . | . . . Terminals . | . . . Fabricators . | . . . Repair Stations . | . . . Recycling Units . | . . . Scanalyzers . | . . . Garrison Access . | . . . Data Cores Recovered . | . . . Used . | . . . Hacking Detections . | . . . Full Trace Events . | . . . Feedback Events . | . . . Feedback Blocked . | . . . Robot Schematics Acquired . | . . . Robots Built . | . . . Authchips . | . . . Time . | . . . Total Robot Build Rating . | . . . Part Schematics Acquired . | . . . Parts Built . | . . . Authchips . | . . . Time . | . . . Total Part Build Rating . | . . . Parts Repaired . | . . . Time . | . . . Parts Recycled . | . . . Recycled Matter . | . . . Retrieved Matter . | . . . Retrieved Components . | . . . Parts Scanalyzed . | . . . Part Schematics Acquired . | . . . Parts Damaged . | . . . Bothacking | -11 -10 -10 ------------ Run | Yrd Mat Sub Used RIF Installer . | . . . Robots Hacked . | . . . Non-combat . | . . . Combat . | . . . Robot Hacks Applied . | . . . Relay Couplers Released . | . . . Fabnet Peak Effective % . | . . . Robots Rewired . | . . . Allies Hacked . | . . . Hacks Repelled . | . . . Allies | -11 -10 -10 -------- Run | Yrd Mat Sub Total Allies . | . . . Largest Group . | . . . Highest-Rated Group . | . . . Highest-Rated Ally . | . . . Total Orders . | . . . Ally Attacks . | . . . Total Damage . | . . . Kills . | . . . Allies Corrupted . | . . . Allies Melted . | . . . Intel | -11 -10 -10 ------- Run | Yrd Mat Sub Robot Analysis Total . | . . . Derelict Logs Recovered . | . . . Drone Launches . | . . . Drone Recoveries . | . . . Exploration | -11 -10 -10 ------------- Run | Yrd Mat Sub Turns Passed 1685 | . 1040 645 Spaces Moved 642 | 1 320 321 Core . | . . . Treads 349 | . 28 321 Legs 293 | 1 292 . Wheels . | . . . Hover . | . . . Flight . | . . . Fastest Speed 120 | 120 120 160 Average Speed 141 | 120 123 160 Slowest Speed 160 | 120 160 160 Overloaded Moves . | . . . Propulsion Burnouts . | . . . Robots Hopped . | . . . Cave-ins Triggered 2 | . . 2 Exploration Rate (%) 20 | 1 45 14 Regions Visited 2 Branch Regions 1 Pre-discovered Areas 1 | . . 1 Known Exits Taken . | . . . Unknown Exits Taken 2 | 1 1 . Scrap Searched 3 | . . 3 Spaces Dug 2 | . . 2 Terrain Destroyed 18 | . . 18 Melee . | . . . Projectile 2 | . . 2 AOE 16 | . . 16 Terrain Rammed 3 | . . 3 Walls Destroyed . | . . . Machines Disabled . | . . . Actions | -11 -10 -10 --------- Run | Yrd Mat Sub Total 1285 | . 878 407 Wait 492 | . 486 6 Move 640 | . 319 321 Hop . | . . . Pick Up 13 | . 7 6 Fast Attach 4 | . . 4 Attach 4 | . 2 2 Detach . | . . . Swap 7 | . 2 5 Drop 20 | . 6 14 Fire 98 | . 56 42 Melee . | . . . Ram 3 | . . 3 Kick . | . . . Crush . | . . . Escape Stasis . | . . . Rewire . | . . . Trap . | . . . Miscellaneous 4 | . . 4 Route ------- -11/Scrapyard -10/Materials (discovered 2 exits: [*Min] / [*Sub]) -10/Subcaves (discovered 1 exit: [*Mat]) History --------- Turn | Location | Event 1 | -11/Scrapyard | Discovered new exit (range 0) 1 | -11/Scrapyard | Entered Materials 138 | -10/Materials | Discovered new exit (range 15) 306 | -10/Materials | Build established: Mutant 1038 | -10/Materials | Discovered new exit (range 3) 1041 | -10/Materials | Entered Subcaves 1044 | -10/Subcaves | Learned location of Zion (-7) 1044 | -10/Subcaves | Met a Zionite searching for "candidates" 1045 | -10/Subcaves | Discovered new exit (range 10) 1111 | -10/Subcaves | Disturbed a concealed Subdweller 1266 | -10/Subcaves | Ambushed by swarm of Subdwellers 1550 | -10/Subcaves | Shifting Twisted Machinery released Mak. System Restoration Module 1551 | -10/Subcaves | Shifting Twisted Machinery released Battle Rifle 1685 | -10/Subcaves | Crushed by falling debris 1685 | -10/Subcaves | Core integrity fell below 50% 1687 | -10/Subcaves | Crushed by falling debris 1687 | -10/Subcaves | Smashed by cave-in Last Messages --------------- 01562_ Acquired Lgt. Assault Rifle. 01633_ Subatomizers dissect the Sub. Power Source. 01641_ Acquired 24 matter. 01644_ System corrupted: Matter fused (-10). 01654_ Sub. Power Source shoots sparks and powers down. 01685_ The unstable cave ceiling collapses. 01685_ Crushed by falling debris. 01685_ Lgt. Assault Rifle destroyed. 01685_ System corrupted by crushing effect (+2). 01685_ Broken Sub. Power Source destroyed. 01685_ System corrupted by crushing effect (+1). 01686_ System corrupted: Component data lost. 01687_ The unstable cave ceiling collapses. 01687_ Crushed by falling debris. 01687_ Lgt. Treads destroyed. 01687_ System corrupted by crushing effect (+1). 01687_ Battle Rifle destroyed. 01687_ System corrupted by crushing effect (+3). Map ----- +----------------------------------------------------+ | ????????????????????????????????????????????????? | | ????????????????????????????????????????????????? | | ????????????????????????????????????????????????? | | ????????????????????????????????????????????????? | | ????????????????????????????????????????????????? | | ????????????????????????????????????????????????? | | ????????????????????????????????????????????????? | | ????????????????????????????????????????????????? | | ????????????????????????????????????????????????? | | ????????????????????????????????????????????????? | | ????????????????????????????????????????????????? | | ????????????????????????????????????????????????? | | ????????????????????????????????????????????????? | | ????????????????????????????????????????????????? | | ????????????????????????????????????????????????? | | ????????????????????????????????????????????????? | | ????????????????????????????????????????????????? | | ????????????????????????????????????????????????? | | ????????????????????????????????????????????????? | | ????????????????????? ??????????????????????????? | | ???????????????????## ??????????????????????????? | | ?????????????????" " "?????????????????????????? | | ????????????????# " "#????????????????????????? | | ???????????????## "" "#?##?###?????????????????? | | ??????????????## " ""### ## ####??????????????? | | ??????????????#" " ""#@##" "####???????????? | | ???????????????# "" "" ##h"" * ## ##??###?????? | | ???????????????#"" """"%g&&!& ###""#?????? | | ????????????????#" " "!&gg!%][ #?????? | | ????????????????###"" *&### !& # ##?????? | | ??????????????????#" ## ## ! ## # ##??###?? | | ??????????????????#" #### ! # # ## ##"""# | | ??????????????????###### = ### ## " "" | | ????????????????????### ## # " "" | | ???????????????????## "" * ## # ## # ""# | | ???????????????##### """ * ##### ####?##?### | | ???????????????# #???## ##?????????? | | ???????????????# # %! ##???###??????????? | | ??????????????## ## ##???????????????? | | ??????????????# ?# " ###?????????????? | | ??????????????# ??# "" #?????????????? | | ???????????????# ??# ###" #?????????????? | | ???????????????## ?## ###"" #?????????????? | | ???????????????## ## ## " #####?????????? | | ???????????????# "" ## "##????????? | | ???????????????# " # """##???????? | | ???????????????# ## " ["""""#???????? | | ???????????????### ### "" """ #???????? | | ?????????????????## #?# " " #???????? | | ??????????????????### #?##### #"" ""!##???????? | +----------------------------------------------------+ Best States ------------- Heat Dissipation 25 Energy Generation 15 Energy Capacity 250 Matter Stores 300 Matter Capacity 300 Sight Range 16 Terrain Scan Density 10 Armor Coverage 800 Evasion (%) 55 Recoil Reduction 2 Item Schematics ----------------- None Robot Schematics ------------------ None Fabricated ------------ Nothing Alien Tech Used ----------------- None Achievements -------------- None Challenges ------------ None Game ------ Seed WeaponsZhirovArmor Manual? 0 Play Time 00:18:36 Cumulative 14.6 hours Start 2024.04.09 @ 20:58:59 End 2024.04.09 @ 21:14:36 Sessions 1 Manual Loads 0 Difficulty Rogue Special Mode None Game No. 42 Rogue 42 Adventurer 0 Explorer 0 Win Type - Total 1 Types 1/0/0/0/0/0/0/0/0 Lore% 14 Gallery% 19 Achievement% 22 Wizard Run 0 Options --------- Layout 1 ASCII 0 Keyboard 0 Movement Mouse Keybinds 0 Fullscreen 2 Font 32/Terminus Map View 50x35 Zoom Use 0% Tactical HUD 1 Map Filters NONE Filters NONE Steam 1 RUN: 68668570-6b6e-4ca5-9d65-94786789c098